Cogmind - Beta 13 *** ADVENTURER MODE // 2024.04.12 @ 23:03:39 Player: SlyFyer Result: Destroyed by G-34 Mercenary with Small Laser Performance ------------- Evolutions (0) 0 Regions Visited (2) 400 Robots Destroyed (33) 165 Value Destroyed (720) 720 Prototype IDs (0) 0 Alien Tech Used (0) 0 Bonus (0) 0 TOTAL SCORE: 1285 Bonus ------- None Cogmind --------- Core Integrity 0/250 Matter 269/300 Energy 100/100 System Corruption 1% Temperature Cool (6) Movement Treading (320) Ox2 Location -10/Mines Parts ------- > --- POWER (1) -------- (None) > --- PROPULSION (2) --- Light Treads Light Treads > --- UTILITY (2) ------ Huge Storage Unit Light Armor Plating > --- WEAPON (2) ------- Assault Rifle Assault Rifle > --- INVENTORY (25) --- Light Treads Light Treads High-capacity Battery (250) Medium Matter Pod (0) Sensor Array Signal Interpreter Targeting Computer Targeting Computer Backup Laser I Light Assault Rifle Light Assault Rifle Grenade Launcher Peak State ------------ > --- POWER ------------ Ion Engine > --- PROPULSION ------- Light Treads Light Treads > --- UTILITY ---------- Huge Storage Unit Sensor Array > --- WEAPON ----------- Assault Rifle Light Assault Rifle > --- INVENTORY -------- Light Ion Engine Light Treads Light Treads High-capacity Battery Medium Matter Pod Sensor Array Targeting Computer Grenade Launcher Mining Laser Mining Laser [Rating: 8] Favorites ----------- Power Ion Engine Engine Ion Engine Propulsion Light Treads Treads Light Treads Utility Huge Storage Unit Device Sensor Array Storage Huge Storage Unit Protection Light Armor Plating Weapon Light Assault Rifle Energy Gun Backup Laser I Ballistic Gun Light Assault Rifle Launcher Grenade Launcher Special Weapon Mining Laser Build | -11 -10 -10 ------- Run | Yrd Mat Min Slots Evolved . | . . . Power . | . . . Propulsion . | . . . Utility . | . . . Weapon . | . . . Parts Attached 24 | 6 9 9 Power 3 | 1 1 1 Engine 3 | 1 1 1 Core . | . . . Reactor . | . . . Propulsion 4 | 2 2 . Treads 4 | 2 2 . Leg . | . . . Wheel . | . . . Hover . | . . . Flight . | . . . Utility 6 | 1 3 2 Device 2 | . 2 . Storage 2 | 1 1 . Processor . | . . . Hackware . | . . . Protection 2 | . . 2 Artifact . | . . . Weapon 11 | 2 3 6 Energy Gun . | . . . Energy Cannon . | . . . Ballistic Gun 6 | 2 1 3 Ballistic Cannon . | . . . Launcher 2 | . 1 1 Special Weapon 3 | . 1 2 Impact Weapon . | . . . Slashing Weapon . | . . . Piercing Weapon . | . . . Special Melee Weapon . | . . . Unidentified Prototypes . | . . . Parts Lost 8 | . 2 6 Power 2 | . . 2 Propulsion . | . . . Utility 3 | . 1 2 Weapon 3 | . 1 2 Highest Loss Streak 3 | . 1 3 To Critical Strikes . | . . . Average Slot Usage (%) 96 | . 97 95 Engine 13 | . 14 11 Treads 27 | . 27 28 Device 6 | . 9 . Storage 14 | . 14 14 Protection 5 | . 2 12 Energy Gun 1 | . 2 . Ballistic Gun 20 | . 23 16 Launcher 2 | . 1 4 Special Weapon 2 | . . 6 Naked Turns . | . . . Heaviest Build 90 | 11 90 90 Greatest Support 40 | 40 40 40 Greatest Overweight (x) 2 | . 2 2 Average Overweight (x) 1 | . 1 2 Largest Inventory Capacity 25 | 8 25 25 Average Capacity 23 | 6 23 25 Most Carried 17 | 5 16 17 Average Carried 11 | 1 10 14 Final Capacity 25 | 8 25 25 Final Carried 16 | 1 16 12 Class Distribution -------------------- 100% | Mutant Dominant Class ---------------- Mutant | -10/Materials Mutant | -10/Mines Resources | -11 -10 -10 ----------- Run | Yrd Mat Min Matter Collected 676 | 134 330 212 Remotely . | . . . Salvage Created 880 | . 708 172 Parts 66 | . 45 21 Haulers Intercepted 2 | . 2 . Recyclers Shooed 1 | . 1 . Parts Field Recycled . | . . . Retrieved Matter . | . . . Parts Self-Destructed . | . . . Prevented . | . . . Kills | -11 -10 -10 ------- Run | Yrd Mat Min Combat Hostiles Destroyed 24 | . 15 9 Guns 20 | . 15 5 Cannons 2 | . . 2 AOE 2 | . . 2 Classes Destroyed 7 | . 6 1 Worker 1 | . 1 . Builder 2 | . 1 1 Tunneler 1 | . . 1 Hauler 2 | . 2 . Watcher 3 | . 3 . Swarmer 8 | . 5 3 Grunt 16 | . 10 6 Best Kill Streak 5 | . 5 3 Combat Bots Only 3 | . 3 3 Max Kills in Single Turn 3 | . 1 3 Gunslinging . | . . . Exploded 2 | . . 2 Melee . | . . . Uniques/NPCs Destroyed . | . . . Combat | -11 -10 -10 -------- Run | Yrd Mat Min Hostile Shots Fired 132 | . 73 59 Missed 38 | . 27 11 Damage Taken 1348 | . 700 648 Core 254 | . 189 65 Absorbed by Shields . | . . . Ignored by Resistances 305 | . 114 191 Regen/Repaired (Parts) 253 | . 253 . Core Remaining (%) 100 | 100 . . Volleys Fired 90 | . 63 27 Largest 2 | . 2 2 Hottest 200 | . 130 200 Shots Fired 162 | . 116 46 Gun 140 | . 112 28 Cannon . | . . . Launcher 2 | . 1 1 Special 20 | . 3 17 Kinetic 137 | . 109 28 Thermal 23 | . 6 17 Explosive 2 | . 1 1 Electromagnetic . | . . . Robot Hit Streak 14 | . 14 14 Robot Miss Streak 5 | . 5 1 Penetration Max . | . . . Secondary Targets 7 | . 6 1 Max Gunslinging Chain 1 | . 1 1 Shots Hit Robots 108 | . 77 31 Core Hits 53 | . 35 18 Critical Kills . | . . . Critical Parts Destroyed 1 | . 1 . Critical Strikes 1 | . 1 . Destroy 1 | . 1 . Melee Attacks . | . . . Impact . | . . . Slashing . | . . . Piercing . | . . . Sneak Attacks . | . . . Combat Hostiles . | . . . Follow-up Attacks . | . . . Damage Inflicted 1453 | . 829 624 Guns 1064 | . 805 259 Cannons . | . . . Explosions 95 | . . 95 Melee . | . . . Ramming 6 | . . 6 Kinetic 1055 | . 796 259 Thermal 297 | . 33 264 Explosive 95 | . . 95 Electromagnetic . | . . . Impact . | . . . Slashing . | . . . Piercing . | . . . Highest Corruption 1 | . 1 1 Average Corruption 1 | . 1 1 Corruption Purged . | . . . Corruption Blocked . | . . . Effects 12 | . 4 8 Message Errors 3 | . . 3 Matter Fused 2 | . 1 1 Heat Flow Errors 3 | . 1 2 Energy Discharges 1 | . . 1 Data Loss (minor) 1 | . 1 . Data Loss (major) 2 | . 1 1 Overload Shots . | . . . Overflow Damage . | . . . Projectiles . | . . . Explosions . | . . . Melee . | . . . Knockbacks . | . . . Impact . | . . . Kinetic . | . . . Secondary . | . . . Self-Inflicted Damage . | . . . Shots . | . . . Rammed 1 | . . 1 Targets Rammed 1 | . . 1 Kicked . | . . . Crushed . | . . . Highest Temperature 382 | . 188 382 Average Temperature 85 | . 28 110 Received Heat Transfer 564 | . 192 372 Effects 1 | . . 1 Energy Bleed 1 | . . 1 Siege Activations . | . . . Robots Corrupted . | . . . Combat Hostiles . | . . . Parts Fried . | . . . Impact Corruptions . | . . . Robots Melted . | . . . Combat Hostiles . | . . . Parts Melted . | . . . Heat Transferred 637 | . 87 550 Parts Sabotaged . | . . . Parts Stolen . | . . . Parts Stripped . | . . . Power Chain Reactions . | . . . Alert | -11 -10 -10 ------- Run | Yrd Mat Min Peak Influence 178 | . 178 80 Initial . | . . . Average 34 | . 39 25 Maximum Alert Level . | . . . Low Security (%) 100 | 100 100 100 Level 1 . | . . . Level 2 . | . . . Level 3 . | . . . Level 4 . | . . . Level 5 . | . . . High Security . | . . . Max Security . | . . . Squads Dispatched 4 | . 4 . Investigation 4 | . 4 . Extermination . | . . . Reinforcement . | . . . Assault . | . . . Garrison . | . . . Intercept . | . . . Searches Triggered . | . . . Construction Impeded . | . . . Haulers Reinforced . | . . . Active Scanning Responses . | . . . Cargo Convoy Interrupts . | . . . Stealth | -11 -10 -10 --------- Run | Yrd Mat Min Distress Signals 2 | . 2 . Communications Jammed . | . . . Distress Signals . | . . . Times Spotted 32 | . 21 11 Peak Tracking Total 5 | . 5 3 Tactical Retreats . | . . . Traps | -11 -10 -10 ------- Run | Yrd Mat Min Traps Triggered 2 | . 2 . Indirectly . | . . . Trap Hack Attempts . | . . . Triggered . | . . . Disarmed 2 | . 2 . Reprogrammed . | . . . Reused . | . . . Traps Extracted . | . . . Installed . | . . . Triggered . | . . . Machines | -11 -10 -10 ---------- Run | Yrd Mat Min Machines Disabled . | . . . Max in Single Turn . | . . . Machines Repaired . | . . . Machines Dismantled . | . . . Machines Sabotaged . | . . . Overloaded Fab Kills . | . . . Hacking | -11 -10 -10 --------- Run | Yrd Mat Min Machines Accessed 9 | . 9 . Terminals 6 | . 6 . Fabricators . | . . . Repair Stations 1 | . 1 . Recycling Units 2 | . 2 . Scanalyzers . | . . . Garrison Access . | . . . Total Hacks 23 | . 23 . Successful 17 | . 17 . Failed 6 | . 6 . Catastrophic 1 | . 1 . Database Lockouts . | . . . Manual 3 | . 3 . Terminals 13 | . 13 . Fabricators . | . . . Repair Stations 8 | . 8 . Recycling Units 2 | . 2 . Scanalyzers . | . . . Garrison Access . | . . . Terminal Hacks 8 | . 8 . Branch Access Points 1 | . 1 . Terminal Index 1 | . 1 . Disarm Traps 2 | . 2 . Dispatch Records 1 | . 1 . Hauler Manifests 1 | . 1 . Registered Components 1 | . 1 . Registered Prototypes 1 | . 1 . Fabricator Hacks . | . . . Repair Station Hacks 7 | . 7 . Scan Component 3 | . 3 . Repair 3 | . 3 . Refit 1 | . 1 . Recycling Unit Hacks 2 | . 2 . Retrieve Components 2 | . 2 . Scanalyzer . | . . . Garrison Access Hacks . | . . . Unauthorized Hacks . | . . . Terminals . | . . . Fabricators . | . . . Repair Stations . | . . . Recycling Units . | . . . Scanalyzers . | . . . Garrison Access . | . . . Data Cores Recovered . | . . . Used . | . . . Hacking Detections 5 | . 5 . Full Trace Events 3 | . 3 . Feedback Events . | . . . Feedback Blocked . | . . . Robot Schematics Acquired . | . . . Robots Built . | . . . Authchips . | . . . Time . | . . . Total Robot Build Rating . | . . . Part Schematics Acquired . | . . . Parts Built . | . . . Authchips . | . . . Time . | . . . Total Part Build Rating . | . . . Parts Repaired 3 | . 3 . Time 78 | . 78 . Parts Recycled . | . . . Recycled Matter . | . . . Retrieved Matter . | . . . Retrieved Components 15 | . 15 . Parts Scanalyzed . | . . . Part Schematics Acquired . | . . . Parts Damaged . | . . . Bothacking | -11 -10 -10 ------------ Run | Yrd Mat Min Used RIF Installer . | . . . Robots Hacked . | . . . Non-combat . | . . . Combat . | . . . Robot Hacks Applied . | . . . Relay Couplers Released . | . . . Fabnet Peak Effective % . | . . . Robots Rewired . | . . . Allies Hacked . | . . . Hacks Repelled . | . . . Allies | -11 -10 -10 -------- Run | Yrd Mat Min Total Allies . | . . . Largest Group . | . . . Highest-Rated Group . | . . . Highest-Rated Ally . | . . . Total Orders . | . . . Ally Attacks . | . . . Total Damage . | . . . Kills . | . . . Allies Corrupted . | . . . Allies Melted . | . . . Intel | -11 -10 -10 ------- Run | Yrd Mat Min Robot Analysis Total . | . . . Derelict Logs Recovered 1 | . . 1 Drone Launches . | . . . Drone Recoveries . | . . . Exploration | -11 -10 -10 ------------- Run | Yrd Mat Min Turns Passed 3885 | 41 2507 1337 Spaces Moved 1166 | 30 767 369 Core 16 | 16 . . Treads 1150 | 14 767 369 Legs . | . . . Wheels . | . . . Hover . | . . . Flight . | . . . Fastest Speed 50 | 50 160 320 Average Speed 294 | 101 290 320 Slowest Speed 320 | 160 320 320 Overloaded Moves . | . . . Propulsion Burnouts . | . . . Robots Hopped . | . . . Cave-ins Triggered 1 | . 1 . Exploration Rate (%) 61 | 5 98 80 Regions Visited 2 Branch Regions 1 Pre-discovered Areas . | . . . Known Exits Taken 1 | . 1 . Unknown Exits Taken 1 | 1 . . Scrap Searched 1 | . . 1 Spaces Dug 9 | . 9 . Terrain Destroyed 14 | . 9 5 Melee . | . . . Projectile 2 | . 2 . AOE 12 | . 7 5 Terrain Rammed . | . . . Walls Destroyed . | . . . Machines Disabled . | . . . Actions | -11 -10 -10 --------- Run | Yrd Mat Min Total 1424 | 40 940 444 Wait 115 | . 78 37 Move 1164 | 29 766 369 Hop . | . . . Pick Up 27 | 5 21 1 Fast Attach 2 | 2 . . Attach 14 | 4 5 5 Detach 1 | . 1 . Swap 8 | . 4 4 Drop 2 | . 2 . Fire 90 | . 63 27 Melee . | . . . Ram . | . . . Kick . | . . . Crush 1 | . . 1 Escape Stasis . | . . . Rewire . | . . . Trap . | . . . Miscellaneous . | . . . Route ------- -11/Scrapyard -10/Materials (discovered 4 exits: [*Mat x3] / *Min) -10/Mines (discovered 1 exit: [*Mat]) History --------- Turn | Location | Event 15 | -11/Scrapyard | Discovered new exit (range 15) 42 | -11/Scrapyard | Entered Materials 150 | -10/Materials | Identified exit to Mines 316 | -10/Materials | Build established: Mutant 595 | -10/Materials | Discovered new exit (range 8) 1350 | -10/Materials | Discovered new exit (range 16) 1871 | -10/Materials | Crushed by falling debris 1871 | -10/Materials | Core integrity fell below 50% 2100 | -10/Materials | Repaired Lgt. Treads 2127 | -10/Materials | Repaired Lgt. Treads 2156 | -10/Materials | Repaired Grenade Launcher 2286 | -10/Materials | Discovered new exit (range 4) 2549 | -10/Materials | Entered Mines 2721 | -10/Mines | Discovered new exit (range 9) 2791 | -10/Mines | Core integrity fell below 20% 3464 | -10/Mines | Excavation squad dispatched 3464 | -10/Mines | A large section of the Mines collapsed 3587 | -10/Mines | Lost 3 parts (1u2w) 3886 | -10/Mines | Destroyed by G-34 Mercenary with Small Laser Last Messages --------------- 03554_ Critical hit (Burn: +37). 03555_ G-47 Trooper heat short circuits Imp. Heat Sink. 03556_ Lgt. Armor Plating destroyed. 03558_ G-47 Trooper destroyed. 03592_ T-07 Excavator is excavating. 03628_ U-05 Engineer lays Concrete. 03654_ Lgt. Ion Engine destroyed. 03656_ U-05 Engineer lays Concrete. 03656_ G-34 Mercenary destroyed. 03656_ Switching to secondary target: G-34 Mercenary. 03659_ Acquired 37 matter. 03662_ G-34 Mercenary destroyed. 03666_ K-01 Serf collects debris. 03678_ Acquired 36 matter. 03685_ System corrupted: Heat flow error (+258). 03694_ Acquired 42 matter. 03773_ System corrupted: Heat flow error (+174). 03808_ XC4I 03882_ T-07 Excavator destroyed. Map ----- +----------------------------------------------------+ | | | | | | | | | | | | | | | | | | | | | | | | | | | | | | | ?????????????????????????????????????????????? | | ?????????????????????????????????????????????? | | ???#########?????????????????????????????????? | | ???# #??????###????????????????????????? | | ???# """ #####?## #???????????????????????? | | ???# """ #?# ##?????????????????????? | | ???# """ #?# ##????????????????????? | | ???# ## ### ##???????????????????? | | ???########## "| ;= #???????????????????? | | ????????????# g%| #???????????????????? | | ????????????#########@ ##??########## #????? | | ????????????????????## ##???# #????? | | ?????????###?????????#;#????# #????? | | ??????#### ##???????# #????# #### ###??????? | | ?????## #???????#*#????# #?????????????? | | ?????# ##????### #????# #?????????????? | | ?????# ##???# [!#?#### #?????????????? | | ??????# #???# ### #?????????????? | | ??????## #???# [### #?????????????? | | ???????### #####! #?# ##????????????? | | ?????????## ==#?# #????????????? | | ??????????## #?## #????????????? | | ???????????### ### ##??## ##????????????? | | ?????????????## ###=#???## #?????????????? | | ??????????????# ## ##### ##????????????? | | ??????????????# #????????????? | | ??????????????## #????????????? | | ???????????????### ##????????????? | | ?????????????????## #####?????????????? | | ??????????????????# ##?????????????????? | | ??????????????????# ##??????????????????? | | ??????????????????## ##???????????????????? | | ??????????????????## #????????????????????? | | ????????????????### ##????????????????????? | | ???????????????## ##?????????????????????? | +----------------------------------------------------+ Best States ------------- Heat Dissipation 25 Energy Generation 10 Energy Capacity 250 Matter Stores 293 Matter Capacity 300 Sight Range 16 Robot Scan Range 14 Terrain Scan Density 10 Armor Coverage 150 Resistance: KI 20 Resistance: TH 20 Resistance: EX 20 Resistance: EM 20 Resistance: I 20 Resistance: S 20 Resistance: P 20 Evasion (%) 50 Recoil Reduction 2 Offensive Hacking 10 Item Schematics ----------------- None Robot Schematics ------------------ None Fabricated ------------ Nothing Alien Tech Used ----------------- None Achievements -------------- None Challenges ------------ None Game ------ Seed ReactionCatalystGravjet Manual? 0 Play Time 00:15:02 Cumulative 30.9 hours Start 2024.04.12 @ 22:49:18 End 2024.04.12 @ 23:03:39 Sessions 1 Manual Loads 0 Difficulty Adventurer Special Mode None Game No. 18 Rogue 0 Adventurer 18 Explorer 0 Win Type - Total 0 Types 0/0/0/0/0/0/0/0/0 Lore% 29 Gallery% 36 Achievement% 30 Wizard Run 0 Options --------- Layout 0 ASCII 0 Keyboard 0 Movement Mouse Keybinds 0 Fullscreen 1 Font 18/SmallcapsGlow Map View 76x50 Zoom Use 0% Tactical HUD 1 Map Filters NONE Filters NONE Steam 1 RUN: 42bc02d4-20e5-471b-87ed-2d62f14dfe68